Cogmind - Beta 10.2 *** ADVENTURER MODE // 2021.08.28 @ 10:30:58 Player: Lucky Result: Self-destructed Performance ------------- Evolutions (1) 500 Regions Visited (3) 600 Robots Destroyed (0) 0 Value Destroyed (0) 0 Prototype IDs (0) 0 Alien Tech Used (0) 0 Bonus (200) 200 TOTAL SCORE: 1300 Bonus ------- Pacifist 200 Cogmind --------- Core Integrity 377/400 Matter 300/300 Energy 99/100 System Corruption 0% Temperature Cool (9) Movement Core (50) Location -9/Materials Parts ------- > --- POWER (1) -------- (None) > --- PROPULSION (2) --- (None) > --- UTILITY (4) ------ (None) > --- WEAPON (2) ------- (None) > --- INVENTORY (4) ---- Light Ion Engine ECM Suite Makeshift Shrapnel Gun Peak State ------------ > --- POWER ------------ Light Ion Engine > --- PROPULSION ------- (None) > --- UTILITY ---------- (None) > --- WEAPON ----------- (None) > --- INVENTORY -------- (None) [Rating: 1] Favorites ----------- Power Light Ion Engine Engine Light Ion Engine Propulsion None Utility None Weapon Mining Laser Special Weapon Mining Laser Build | -11 -10 -10 -9 ------- Run | Scr Mat Min Mat Slots Evolved 2 | . . . 2 Power . | . . . . Propulsion . | . . . . Utility 2 | . . . 2 Weapon . | . . . . Parts Attached 2 | 1 . 1 . Power 1 | 1 . . . Engine 1 | 1 . . . Core . | . . . . Reactor . | . . . . Propulsion . | . . . . Treads . | . . . . Leg . | . . . . Wheel . | . . . . Hover . | . . . . Flight . | . . . . Utility . | . . . . Device . | . . . . Storage . | . . . . Processor . | . . . . Hackware . | . . . . Protection . | . . . . Artifact . | . . . . Weapon 1 | . . 1 . Energy Gun . | . . . . Energy Cannon . | . . . . Ballistic Gun . | . . . . Ballistic Cannon . | . . . . Launcher . | . . . . Special Weapon 1 | . . 1 . Impact Weapon . | . . . . Slashing Weapon . | . . . . Piercing Weapon . | . . . . Special Melee Weapon . | . . . . Unidentified Prototypes . | . . . . Parts Lost 1 | . . 1 . Power . | . . . . Propulsion . | . . . . Utility . | . . . . Weapon 1 | . . 1 . Highest Loss Streak 1 | . . 1 . Average Slot Usage (%) 10 | . . 14 . Special Weapon 10 | . . 14 . Naked Turns 69 | . 52 1 16 Heaviest Build 3 | 3 . 1 . Greatest Support 3 | 3 3 3 3 Greatest Overweight (x) . | . . . . Average Overweight (x) . | . . . . Largest Inventory Capacity 4 | 4 4 4 4 Average Capacity 4 | 4 4 4 4 Most Carried 3 | 1 2 3 3 Average Carried 1 | . 1 2 3 Final Capacity 4 | 4 4 4 4 Final Carried 3 | 1 2 3 3 Class Distribution -------------------- 100% | Mutant Dominant Class ---------------- Mutant | -10/Materials Mutant | -10/Mines Mutant | -9/Materials Resources | -11 -10 -10 -9 ----------- Run | Scr Mat Min Mat Matter Collected 220 | 182 . 38 . Remotely . | . . . . Salvage Created . | . . . . Parts . | . . . . Haulers Intercepted . | . . . . Recyclers Shooed . | . . . . Parts Field Recycled . | . . . . Retrieved Matter . | . . . . Parts Self-Destructed . | . . . . Prevented . | . . . . Kills | -11 -10 -10 -9 ------- Run | Scr Mat Min Mat Combat Hostiles Destroyed . | . . . . Classes Destroyed . | . . . . Best Kill Streak . | . . . . Combat Bots Only . | . . . . Max Kills in Single Turn . | . . . . Gunslinging . | . . . . Exploded . | . . . . Melee . | . . . . Uniques/NPCs Destroyed . | . . . . Combat | -11 -10 -10 -9 -------- Run | Scr Mat Min Mat Damage Taken 144 | . . 121 23 Core 114 | . . 91 23 Absorbed by Shields . | . . . . Core Remaining (%) 81 | 100 . 63 . Volleys Fired . | . . . . Largest . | . . . . Hottest . | . . . . Shots Fired . | . . . . Gun . | . . . . Cannon . | . . . . Launcher . | . . . . Special . | . . . . Kinetic . | . . . . Thermal . | . . . . Explosive . | . . . . Electromagnetic . | . . . . Robot Hit Streak . | . . . . Robot Miss Streak . | . . . . Penetration Max . | . . . . Secondary Targets . | . . . . Shots Hit Robots . | . . . . Core Hits . | . . . . Critical Hits . | . . . . Critical Kills . | . . . . Critical Parts Destroyed . | . . . . Melee Attacks . | . . . . Impact . | . . . . Slashing . | . . . . Piercing . | . . . . Sneak Attacks . | . . . . Combat Hostiles . | . . . . Follow-up Attacks . | . . . . Damage Inflicted . | . . . . Guns . | . . . . Cannons . | . . . . Explosions . | . . . . Melee . | . . . . Ramming . | . . . . Kinetic . | . . . . Thermal . | . . . . Explosive . | . . . . Electromagnetic . | . . . . Impact . | . . . . Slashing . | . . . . Piercing . | . . . . Highest Corruption . | . . . . Average Corruption . | . . . . Corruption Purged . | . . . . Overload Shots . | . . . . Overflow Damage . | . . . . Projectiles . | . . . . Explosions . | . . . . Melee . | . . . . Knockbacks . | . . . . Impact . | . . . . Kinetic . | . . . . Secondary . | . . . . Self-Inflicted Damage . | . . . . Shots . | . . . . Rammed . | . . . . Targets Rammed . | . . . . Kicked . | . . . . Crushed . | . . . . Highest Temperature . | . . . . Average Temperature . | . . . . Received Heat Transfer 9 | . . . 9 Siege Activations . | . . . . Robots Corrupted . | . . . . Combat Hostiles . | . . . . Parts Fried . | . . . . Impact Corruptions . | . . . . Robots Melted . | . . . . Combat Hostiles . | . . . . Parts Melted . | . . . . Heat Transferred . | . . . . Parts Sabotaged . | . . . . Parts Stolen . | . . . . Parts Stripped . | . . . . Power Chain Reactions . | . . . . Missiles Intercepted . | . . . . Alert | -11 -10 -10 -9 ------- Run | Scr Mat Min Mat Peak Influence 45 | . 45 29 6 Initial 14 | . . 14 6 Average 20 | . 10 25 6 Maximum Alert Level . | . . . . Low Security (%) 100 | 100 100 100 100 Level 1 . | . . . . Level 2 . | . . . . Level 3 . | . . . . Level 4 . | . . . . Level 5 . | . . . . High Security . | . . . . Max Security . | . . . . Squads Dispatched 1 | . 1 . . Investigation 1 | . 1 . . Extermination . | . . . . Reinforcement . | . . . . Assault . | . . . . Garrison . | . . . . Intercept . | . . . . Construction Impeded . | . . . . Haulers Reinforced . | . . . . Stealth | -11 -10 -10 -9 --------- Run | Scr Mat Min Mat Distress Signals . | . . . . Communications Jammed . | . . . . Distress Signals . | . . . . Times Spotted 6 | . 3 2 1 Peak Tracking Total 2 | . 2 2 1 Tactical Retreats . | . . . . Traps | -11 -10 -10 -9 ------- Run | Scr Mat Min Mat Traps Triggered 1 | . 1 . . Indirectly . | . . . . Trap Hack Attempts . | . . . . Triggered . | . . . . Disarmed . | . . . . Reprogrammed . | . . . . Reused . | . . . . Traps Extracted . | . . . . Installed . | . . . . Triggered . | . . . . Machines | -11 -10 -10 -9 ---------- Run | Scr Mat Min Mat Machines Disabled . | . . . . Max in Single Turn . | . . . . Machines Sabotaged . | . . . . Garrisons Compromised . | . . . . Overloaded Fab Kills . | . . . . Fab Network Shutdowns . | . . . . Hacking | -11 -10 -10 -9 --------- Run | Scr Mat Min Mat Machines Accessed 1 | . 1 . . Terminals 1 | . 1 . . Fabricators . | . . . . Repair Stations . | . . . . Recycling Units . | . . . . Scanalyzers . | . . . . Garrison Access . | . . . . Total Hacks 2 | . 2 . . Successful 1 | . 1 . . Failed 1 | . 1 . . Catastrophic . | . . . . Database Lockouts . | . . . . Manual 2 | . 2 . . Terminals 2 | . 2 . . Fabricators . | . . . . Repair Stations . | . . . . Recycling Units . | . . . . Scanalyzers . | . . . . Garrison Access . | . . . . Terminal Hacks . | . . . . Fabricator Hacks . | . . . . Repair Station Hacks . | . . . . Recycling Unit Hacks . | . . . . Scanalyzer . | . . . . Garrison Access Hacks . | . . . . Unauthorized Hacks 1 | . 1 . . Terminals 1 | . 1 . . Track 1 | . 1 . . Fabricators . | . . . . Repair Stations . | . . . . Recycling Units . | . . . . Scanalyzers . | . . . . Garrison Access . | . . . . Data Cores Recovered . | . . . . Used . | . . . . Hacking Detections 1 | . 1 . . Full Trace Events . | . . . . Feedback Events . | . . . . Feedback Blocked . | . . . . Robot Schematics Acquired . | . . . . Robots Built . | . . . . Matter . | . . . . Time . | . . . . Total Robot Build Rating . | . . . . Part Schematics Acquired . | . . . . Parts Built . | . . . . Matter . | . . . . Time . | . . . . Total Part Build Rating . | . . . . Parts Repaired . | . . . . Time . | . . . . Parts Recycled . | . . . . Recycled Matter . | . . . . Retrieved Matter . | . . . . Retrieved Components . | . . . . Parts Scanalyzed . | . . . . Part Schematics Acquired . | . . . . Parts Damaged . | . . . . Bothacking | -11 -10 -10 -9 ------------ Run | Scr Mat Min Mat Used RIF Installer . | . . . . Robots Hacked . | . . . . Non-combat . | . . . . Combat . | . . . . Robot Hacks Applied . | . . . . Relay Couplers Released . | . . . . Robots Rewired . | . . . . Allies Hacked . | . . . . Hacks Repelled . | . . . . Allies | -11 -10 -10 -9 -------- Run | Scr Mat Min Mat Total Allies . | . . . . Largest Group . | . . . . Highest-Rated Group . | . . . . Highest-Rated Ally . | . . . . Total Orders . | . . . . Ally Attacks . | . . . . Total Damage . | . . . . Kills . | . . . . Allies Corrupted . | . . . . Allies Melted . | . . . . Intel | -11 -10 -10 -9 ------- Run | Scr Mat Min Mat Robot Analysis Total . | . . . . Derelict Logs Recovered 1 | . . 1 . Drone Launches . | . . . . Drone Recoveries . | . . . . Exploration | -11 -10 -10 -9 ------------- Run | Scr Mat Min Mat Turns Passed 287 | 13 52 206 16 Spaces Moved 438 | 23 101 283 31 Core 438 | 23 101 283 31 Treads . | . . . . Legs . | . . . . Wheels . | . . . . Hover . | . . . . Flight . | . . . . Fastest Speed 50 | 50 50 50 50 Average Speed 50 | 50 50 50 50 Slowest Speed 50 | 50 50 50 50 Overloaded Moves . | . . . . Propulsion Burnouts . | . . . . Robots Hopped . | . . . . Cave-ins Triggered . | . . . . Exploration Rate (%) 22 | 3 22 57 9 Regions Visited 3 Branch Regions 1 Pre-discovered Areas . | . . . . Known Exits Taken 1 | . . 1 . Unknown Exits Taken 2 | 1 1 . . Scrap Searched 1 | . . 1 . Spaces Dug . | . . . . Terrain Destroyed . | . . . . Melee . | . . . . Projectile . | . . . . AOE . | . . . . Terrain Rammed . | . . . . Walls Destroyed . | . . . . Machines Disabled . | . . . . Actions | -11 -10 -10 -9 --------- Run | Scr Mat Min Mat Total 502 | 24 101 346 31 Wait 61 | . . 61 . Move 435 | 22 100 282 31 Hop . | . . . . Pick Up 3 | . 1 2 . Fast Attach 1 | 1 . . . Attach 1 | . . 1 . Detach 1 | 1 . . . Swap . | . . . . Drop . | . . . . Fire . | . . . . Melee . | . . . . Ram . | . . . . Kick . | . . . . Crush . | . . . . Escape Stasis . | . . . . Rewire . | . . . . Trap . | . . . . Miscellaneous . | . . . . Route ------- -11/Scrapyard -10/Materials -10/Mines (discovered 2 exits: *Mat x2) -9/Materials History --------- Turn | Location | Event 5 | -11/Scrapyard | Discovered new exit (range 16) 14 | -11/Scrapyard | Entered Materials 60 | -10/Materials | Discovered new exit (range 5) 66 | -10/Materials | Entered Mines 104 | -10/Mines | A weapon hastily lodged in a ceiling crevice suddenly fell to the ground 111 | -10/Mines | Met a Derelict bent on vengeance 154 | -10/Mines | Identified exit to Materials 241 | -10/Mines | Assembled infested the area 246 | -10/Mines | Assisted by a Guerilla fighting off Assembled 255 | -10/Mines | Discovered exit to Materials (range 9) 272 | -10/Mines | Entered Materials 272 | -9/Materials | Evolved 2 slots: Utility x2 288 | -9/Materials | Self-destructed Last Messages --------------- 00220_ Acquired ECM Suite. 00241_ ALERT: Infestation in the mines, dispatching Demolisher response squad. 00246_ A derelict emerges from the shadows: "You need to get out of here! I've been tracking a group of Assembled to figure out where they're coming from, and they're closing on this area, come on!" 00255_ EXIT=FOUND: MATERIALS 00269_ HV Slug penetrates Wall. 00269_ D-53 Grenadier suffers critical hit. 00269_ D-53 Grenadier knocked back. 00269_ K-01 Serf collects debris. 00270_ U-05 Engineer builds a Wall. 00271_ HV Slug penetrates U-05 Engineer. 00271_ U-05 Engineer suffers critical hit. 00271_ U-05 Engineer destroyed. 00271_ U-05 Engineer builds a Wall. 00271_ Mining Laser destroyed. PARAMETERS=UTILITY_2 LOCATION=MATERIALS GOAL=ESCAPE Map ----- +----------------------------------------------------+ | ????????????????# | | ????????????????# | | ???????????????#####+##########? | | ???????????????# #?????? | | ???????????????+ #?????? | | ???????????????# #?????? | | ???????????????# #?????? | | ???????????????# #?????? | | ???????????????# #?????? | | ???????????????# #?????? | | ???????????????# #?????? | | ???????????????####+###+##?????? | | ?????##### ######## #??????????? | | ???# #??????????? | | ??????######## #??????????? | | ??????# # #??????????? | | ??????# """ + #??????????? | | ??????# "R" ##### #??????????? | | ??????# " " #???# #??????????? | | ??????+ #???# ?????????? | | ??????# +??? ????????? | | ??????####+###???# ???????? | | ?????????# #?????# #??????? | | ?????????# #?????# #??????? | | ???# ##### ####### #??????? | | ???# @ ?????? | | ???#### ##+###############?????? | | ??????# ## ??????????????????? | | ??????# ##""" [????????????????? | | ?????? #""" #??????????????? | | ?????? Y #""" #??????????????? | | ?????? # #??????????????? | | ??????# ## #??????????????? | | ??????# #########??????????????? | | ??????? ???????????????????????? | | ??????? ???????????????????????? | | ??????? ???????????????????????? | | ??????? ???????????????????????? | | ???????#???????????????????????? | | ???????????????????????????????? | | ???????????????????????????????? | | ???????????????????????????????? | | ???????????????????????????????? | | ???????????????????????????????? | | ???????????????????????????????? | | ???????????????????????????????? | | ???????????????????????????????? | | ???????????????????????????????? | | ???????????????????????????????? | | ???????????????????????????????? | +----------------------------------------------------+ Best States ------------- Heat Dissipation 28 Energy Generation 10 Energy Capacity 125 Matter Stores 300 Matter Capacity 300 Sight Range 16 Terrain Scan Density 10 Resistance: KI 20 Resistance: TH 20 Resistance: EX 20 Resistance: EM 20 Resistance: I 20 Resistance: S 20 Resistance: P 20 Evasion (%) 50 Offensive Hacking 10 Item Schematics ----------------- None Robot Schematics ------------------ None Fabricated ------------ Nothing Alien Tech Used ----------------- None Achievements -------------- None Challenges ------------ None Game ------ Seed LightpackRemoteRegulator Manual? 0 Play Time 00:04:25 Cumulative 77.3 hours Start 2021.08.28 @ 10:23:06 End 2021.08.28 @ 10:30:58 Sessions 1 Manual Loads 0 Difficulty Adventurer Special Mode None Game No. 101 Rogue 94 Adventurer 7 Explorer 0 Win Type - Total 0 Types 0/0/0/0/0/0/0/0/0 Lore% 26 Gallery% 28 Achievement% 30 Wizard Run 0 Options --------- ASCII 0 Keyboard 0 Movement Mouse Keybinds 0 Fullscreen 1 Font 36/Smallcaps Map View 76x50 Tactical HUD 1 Map Filters NONE Filters NONE Steam 1 RUN: bf27e38a-a0de-499e-b044-d94513994657